{"text_format":"1","workbook":"xlsx","n_sheets":4,"sheets":["SmartArt (иерархия)","SmartArt (процесс)","SmartArt (цикл)","EXCEL2.RU"],"not_rendered":{"charts":0,"images":0,"macros":1,"external_links":0,"defined_names":12,"comments":0,"pivot_tables":0},"unopened":[],"bounds":{"document_bytes":16777216,"sheet_cells":100000,"rows_first":2000,"rows_last":500,"rows_between":2000,"halvings":0,"cell_chars":16384,"cell_head_chars":4096},"cells_cut":0,"cells_raw":0,"read":"whole","date_system":"1900"}

{"sheet":"SmartArt (иерархия)","index":0,"n_rows":42,"n_cols":19,"rows_kept":42,"cut":false,"hidden":false,"merged":[]}
["Файл скачан с сайта excel2.ru >>>"]
["Перейти к статье >>>"]
["Автоматический анализ блок-схем SmartArt в MS EXCEL (парсинг)"]
["SmartArt Иерархического типа"]
[]
[]
[]
[null,null,null,null,null,null,null,null,null,null,null,null,null,"Последовательность максимальной длины"]
[null,null,null,null,null,null,null,null,null,null,null,null,null,{"$f":"MAX(S16:S35)","v":6}]
[null,null,null,null,null,null,null,null,null,null,null,null,null,null,null,null,null,3]
[null,null,null,null,null,null,null,null,null,null,null,null,null,"Нач.строка",{"$f":"ROW(N15)","v":15},null,null,{"$f":"MID(R17,R10*5-4,4)","v":"3.08"},{"$f":"R10&\"-й элемент у \"&O17","v":"3-й элемент у 2.02"}]
[null,null,null,null,null,null,null,null,null,null,null,null,null,"Нач.столбец",{"$f":"COLUMN(N15)","v":14}]
[null,null,null,null,null,null,null,null,null,null,null,null,null,"Всего",{"$f":"COUNT(N16:N35)","v":16}]
[]
[null,null,null,null,null,null,null,null,null,null,null,null,null,"№ элемента","Код элемента (текстовый)","Элемент на один уровень выше (всегда 1)","Элементы на один уровень ниже (количество)","Элементы на один уровень ниже (коды)","Уровень элемента"]
[null,null,null,null,null,null,null,null,null,null,null,null,null,1,"1.01",null,2,"2.02-2.16",{"$f":"IFERROR(--LEFT(O16,1),\"\")","v":1}]
[null,null,null,null,null,null,null,null,null,null,null,null,null,2,"2.02","1.01",4,"3.03-3.05-3.08-3.09",{"$f":"IFERROR(--LEFT(O17,1),\"\")","v":2}]
[null,null,null,null,null,null,null,null,null,null,null,null,null,3,"3.03","2.02",1,"4.04",{"$f":"IFERROR(--LEFT(O18,1),\"\")","v":3}]
[null,null,null,null,null,null,null,null,null,null,null,null,null,4,"4.04","3.03",0,null,{"$f":"IFERROR(--LEFT(O19,1),\"\")","v":4}]
[null,null,null,null,null,null,null,null,null,null,null,null,null,5,"3.05","2.02",1,"4.06",{"$f":"IFERROR(--LEFT(O20,1),\"\")","v":3}]
[null,null,null,null,null,null,null,null,null,null,null,null,null,6,"4.06","3.05",1,"5.07",{"$f":"IFERROR(--LEFT(O21,1),\"\")","v":4}]
[null,null,null,null,null,null,null,null,null,null,null,null,null,7,"5.07","4.06",0,null,{"$f":"IFERROR(--LEFT(O22,1),\"\")","v":5}]
[null,null,null,null,null,null,null,null,null,null,null,null,null,8,"3.08","2.02",0,null,{"$f":"IFERROR(--LEFT(O23,1),\"\")","v":3}]
[null,null,null,null,null,null,null,null,null,null,null,null,null,9,"3.09","2.02",3,"4.10-4.13-4.14",{"$f":"IFERROR(--LEFT(O24,1),\"\")","v":3}]
[null,null,null,null,null,null,null,null,null,null,null,null,null,10,"4.10","3.09",1,"5.11",{"$f":"IFERROR(--LEFT(O25,1),\"\")","v":4}]
[null,null,null,null,null,null,null,null,null,null,null,null,null,11,"5.11","4.10",1,"6.12",{"$f":"IFERROR(--LEFT(O26,1),\"\")","v":5}]
[null,null,null,null,null,null,null,null,null,null,null,null,null,12,"6.12","5.11",0,null,{"$f":"IFERROR(--LEFT(O27,1),\"\")","v":6}]
["Пояснения:",null,null,null,null,null,null,null,null,null,null,null,null,13,"4.13","3.09",0,null,{"$f":"IFERROR(--LEFT(O28,1),\"\")","v":4}]
["Левая часть номера - это уровень элемента в иерархии",null,null,null,null,null,null,null,null,null,null,null,null,14,"4.14","3.09",1,"5.15",{"$f":"IFERROR(--LEFT(O29,1),\"\")","v":4}]
["Правая часть - последовательный номер элемента",null,null,null,null,null,null,null,null,null,null,null,null,15,"5.15","4.14",0,null,{"$f":"IFERROR(--LEFT(O30,1),\"\")","v":5}]
["Нумерация элементов соответствует порядку их обхода в схеме",null,null,null,null,null,null,null,null,null,null,null,null,16,"2.16","1.01",0,null,{"$f":"IFERROR(--LEFT(O31,1),\"\")","v":2}]
["Элементы не имеющие предшественников выделяются в схеме и таблице зеленым цветом",null,null,null,null,null,null,null,null,null,null,null,null,null,null,null,null,null,{"$f":"IFERROR(--LEFT(O32,1),\"\")","v":""}]
["Элемент уровня выше - всегда один (это соответствует типу схемы Иерархия)",null,null,null,null,null,null,null,null,null,null,null,null,null,null,null,null,null,{"$f":"IFERROR(--LEFT(O33,1),\"\")","v":""}]
["Максимальный уровень иерархии - 9 (это соответствует последовательности элементов максимальной длины)",null,null,null,null,null,null,null,null,null,null,null,null,null,null,null,null,null,{"$f":"IFERROR(--LEFT(O34,1),\"\")","v":""}]
["Максимальное количество элементов - 20",null,null,null,null,null,null,null,null,null,null,null,null,null,null,null,null,null,{"$f":"IFERROR(--LEFT(O35,1),\"\")","v":""}]
["Данные об элементах и их связях заносятся в таблицу"]
["Парсинг других типов SmartArt (процесс, цикл) также работает, но на листе должна быть только 1 SmartArt"]
[]
[]
["Примечание:"]
["Парсинг — это процесс автоматического сбора данных и их структурирования."]
["Код программы VBA скрыт, если нужны пояснения, то пишите в группу https://vk.com/excel2ru"]

{"sheet":"SmartArt (процесс)","index":1,"n_rows":35,"n_cols":19,"rows_kept":35,"cut":false,"hidden":false,"merged":[]}
["Файл скачан с сайта excel2.ru >>>"]
["Перейти к статье >>>"]
["Автоматический анализ блок-схем SmartArt в MS EXCEL (парсинг)"]
["SmartArt типа Процесс"]
[]
[]
[]
[null,null,null,null,null,null,null,null,null,null,null,null,null,"Последовательность максимальной длины"]
[null,null,null,null,null,null,null,null,null,null,null,null,null,{"$f":"MAX(S16:S35)","v":1}]
[]
[null,null,null,null,null,null,null,null,null,null,null,null,null,"Нач.строка",{"$f":"ROW(N15)","v":15}]
[null,null,null,null,null,null,null,null,null,null,null,null,null,"Нач.столбец",{"$f":"COLUMN(N15)","v":14}]
[null,null,null,null,null,null,null,null,null,null,null,null,null,"Всего",{"$f":"COUNT(N16:N35)","v":3}]
[]
[null,null,null,null,null,null,null,null,null,null,null,null,null,"№ элемента","Код элемента (текстовый)","Элемент на один уровень выше (всегда 1)","Элементы на один уровень ниже (количество)","Элементы на один уровень ниже (коды)","Уровень элемента"]
[null,null,null,null,null,null,null,null,null,null,null,null,null,1,"1.01",null,0,null,{"$f":"IFERROR(--LEFT(O16,1),\"\")","v":1}]
[null,null,null,null,null,null,null,null,null,null,null,null,null,2,"1.02",null,0,null,{"$f":"IFERROR(--LEFT(O17,1),\"\")","v":1}]
[null,null,null,null,null,null,null,null,null,null,null,null,null,3,"1.03",null,0,null,{"$f":"IFERROR(--LEFT(O18,1),\"\")","v":1}]
[null,null,null,null,null,null,null,null,null,null,null,null,null,null,null,null,null,null,{"$f":"IFERROR(--LEFT(O19,1),\"\")","v":""}]
[null,null,null,null,null,null,null,null,null,null,null,null,null,null,null,null,null,null,{"$f":"IFERROR(--LEFT(O20,1),\"\")","v":""}]
[null,null,null,null,null,null,null,null,null,null,null,null,null,null,null,null,null,null,{"$f":"IFERROR(--LEFT(O21,1),\"\")","v":""}]
[null,null,null,null,null,null,null,null,null,null,null,null,null,null,null,null,null,null,{"$f":"IFERROR(--LEFT(O22,1),\"\")","v":""}]
[null,null,null,null,null,null,null,null,null,null,null,null,null,null,null,null,null,null,{"$f":"IFERROR(--LEFT(O23,1),\"\")","v":""}]
[null,null,null,null,null,null,null,null,null,null,null,null,null,null,null,null,null,null,{"$f":"IFERROR(--LEFT(O24,1),\"\")","v":""}]
[null,null,null,null,null,null,null,null,null,null,null,null,null,null,null,null,null,null,{"$f":"IFERROR(--LEFT(O25,1),\"\")","v":""}]
[null,null,null,null,null,null,null,null,null,null,null,null,null,null,null,null,null,null,{"$f":"IFERROR(--LEFT(O26,1),\"\")","v":""}]
[null,null,null,null,null,null,null,null,null,null,null,null,null,null,null,null,null,null,{"$f":"IFERROR(--LEFT(O27,1),\"\")","v":""}]
[null,null,null,null,null,null,null,null,null,null,null,null,null,null,null,null,null,null,{"$f":"IFERROR(--LEFT(O28,1),\"\")","v":""}]
[null,null,null,null,null,null,null,null,null,null,null,null,null,null,null,null,null,null,{"$f":"IFERROR(--LEFT(O29,1),\"\")","v":""}]
[null,null,null,null,null,null,null,null,null,null,null,null,null,null,null,null,null,null,{"$f":"IFERROR(--LEFT(O30,1),\"\")","v":""}]
[null,null,null,null,null,null,null,null,null,null,null,null,null,null,null,null,null,null,{"$f":"IFERROR(--LEFT(O31,1),\"\")","v":""}]
[null,null,null,null,null,null,null,null,null,null,null,null,null,null,null,null,null,null,{"$f":"IFERROR(--LEFT(O32,1),\"\")","v":""}]
[null,null,null,null,null,null,null,null,null,null,null,null,null,null,null,null,null,null,{"$f":"IFERROR(--LEFT(O33,1),\"\")","v":""}]
[null,null,null,null,null,null,null,null,null,null,null,null,null,null,null,null,null,null,{"$f":"IFERROR(--LEFT(O34,1),\"\")","v":""}]
[null,null,null,null,null,null,null,null,null,null,null,null,null,null,null,null,null,null,{"$f":"IFERROR(--LEFT(O35,1),\"\")","v":""}]

{"sheet":"SmartArt (цикл)","index":2,"n_rows":35,"n_cols":19,"rows_kept":35,"cut":false,"hidden":false,"merged":[]}
["Файл скачан с сайта excel2.ru >>>"]
["Перейти к статье >>>"]
["Автоматический анализ блок-схем SmartArt в MS EXCEL (парсинг)"]
["SmartArt типа Цикл"]
[]
[]
[]
[null,null,null,null,null,null,null,null,null,null,null,null,null,"Последовательность максимальной длины"]
[null,null,null,null,null,null,null,null,null,null,null,null,null,{"$f":"MAX(S16:S35)","v":1}]
[]
[null,null,null,null,null,null,null,null,null,null,null,null,null,"Нач.строка",{"$f":"ROW(N15)","v":15}]
[null,null,null,null,null,null,null,null,null,null,null,null,null,"Нач.столбец",{"$f":"COLUMN(N15)","v":14}]
[null,null,null,null,null,null,null,null,null,null,null,null,null,"Всего",{"$f":"COUNT(N16:N35)","v":5}]
[]
[null,null,null,null,null,null,null,null,null,null,null,null,null,"№ элемента","Код элемента (текстовый)","Элемент на один уровень выше (всегда 1)","Элементы на один уровень ниже (количество)","Элементы на один уровень ниже (коды)","Уровень элемента"]
[null,null,null,null,null,null,null,null,null,null,null,null,null,1,"1.01",null,0,null,{"$f":"IFERROR(--LEFT(O16,1),\"\")","v":1}]
[null,null,null,null,null,null,null,null,null,null,null,null,null,2,"1.02",null,0,null,{"$f":"IFERROR(--LEFT(O17,1),\"\")","v":1}]
[null,null,null,null,null,null,null,null,null,null,null,null,null,3,"1.03",null,0,null,{"$f":"IFERROR(--LEFT(O18,1),\"\")","v":1}]
[null,null,null,null,null,null,null,null,null,null,null,null,null,4,"1.04",null,0,null,{"$f":"IFERROR(--LEFT(O19,1),\"\")","v":1}]
[null,null,null,null,null,null,null,null,null,null,null,null,null,5,"1.05",null,0,null,{"$f":"IFERROR(--LEFT(O20,1),\"\")","v":1}]
[null,null,null,null,null,null,null,null,null,null,null,null,null,null,null,null,null,null,{"$f":"IFERROR(--LEFT(O21,1),\"\")","v":""}]
[null,null,null,null,null,null,null,null,null,null,null,null,null,null,null,null,null,null,{"$f":"IFERROR(--LEFT(O22,1),\"\")","v":""}]
[null,null,null,null,null,null,null,null,null,null,null,null,null,null,null,null,null,null,{"$f":"IFERROR(--LEFT(O23,1),\"\")","v":""}]
[null,null,null,null,null,null,null,null,null,null,null,null,null,null,null,null,null,null,{"$f":"IFERROR(--LEFT(O24,1),\"\")","v":""}]
[null,null,null,null,null,null,null,null,null,null,null,null,null,null,null,null,null,null,{"$f":"IFERROR(--LEFT(O25,1),\"\")","v":""}]
[null,null,null,null,null,null,null,null,null,null,null,null,null,null,null,null,null,null,{"$f":"IFERROR(--LEFT(O26,1),\"\")","v":""}]
[null,null,null,null,null,null,null,null,null,null,null,null,null,null,null,null,null,null,{"$f":"IFERROR(--LEFT(O27,1),\"\")","v":""}]
[null,null,null,null,null,null,null,null,null,null,null,null,null,null,null,null,null,null,{"$f":"IFERROR(--LEFT(O28,1),\"\")","v":""}]
[null,null,null,null,null,null,null,null,null,null,null,null,null,null,null,null,null,null,{"$f":"IFERROR(--LEFT(O29,1),\"\")","v":""}]
[null,null,null,null,null,null,null,null,null,null,null,null,null,null,null,null,null,null,{"$f":"IFERROR(--LEFT(O30,1),\"\")","v":""}]
[null,null,null,null,null,null,null,null,null,null,null,null,null,null,null,null,null,null,{"$f":"IFERROR(--LEFT(O31,1),\"\")","v":""}]
[null,null,null,null,null,null,null,null,null,null,null,null,null,null,null,null,null,null,{"$f":"IFERROR(--LEFT(O32,1),\"\")","v":""}]
[null,null,null,null,null,null,null,null,null,null,null,null,null,null,null,null,null,null,{"$f":"IFERROR(--LEFT(O33,1),\"\")","v":""}]
[null,null,null,null,null,null,null,null,null,null,null,null,null,null,null,null,null,null,{"$f":"IFERROR(--LEFT(O34,1),\"\")","v":""}]
[null,null,null,null,null,null,null,null,null,null,null,null,null,null,null,null,null,null,{"$f":"IFERROR(--LEFT(O35,1),\"\")","v":""}]

{"sheet":"EXCEL2.RU","index":3,"n_rows":3,"n_cols":1,"rows_kept":3,"cut":false,"hidden":false,"merged":[[0,0,0,6]]}
["EXCEL2.RU - профессиональные приемы для всех >>>"]
["Хорошая новость! Большинство задач, которые Вы хотите решить с помощью MS EXCEL – уже давно решены! \nНа нашем сайте Вы найдете решения множества из наиболее часто встречающихся задач. Сайт содержит более 500 качественно оформленных статей с файлами примеров."]
["Миссия нашего сайта - превратить Вашу работу в MS EXCEL в приятное времяпрепровождение и ускорить решение Ваших задач. Мы постоянно работаем над содержанием и оформлением нашего сайта и благодарим активных пользователей за поддержку и неоценимую помощь в нашей работе."]